Cogmind - Beta 15 @@@ ROGUE MODE // 2025.05.19 @ 20:08:09 Player: DGSTER Result: Destroyed by Striker with Plasma Lance Performance ------------- Evolutions (4) 2000 Regions Visited (12) 2400 Robots Destroyed (76) 380 Value Destroyed (3675) 3675 Prototype IDs (13) 260 Alien Tech Used (0) 0 Bonus (2478) 2478 TOTAL SCORE: 11193 Bonus ------- High Alert Combat Kills 86 Follower Combat Kills 492 Entered Garrisons 400 Used RIF Installer 1500 Cogmind --------- Core Integrity 0/850 Matter 104/300 Energy 150/150 System Corruption 15% Temperature Cool (0) Movement Treading (240) Ox1 Location -6/Garrison Parts ------- > --- POWER (2) -------- Light Angular Momentum Engine > --- PROPULSION (4) --- Light Treads > --- UTILITY (7) ------ Large Storage Unit Advanced Signal Interpreter Relay Coupler [Sentry] (6) Relay Coupler [Hunter] (13) > --- WEAPON (2) ------- (None) > --- INVENTORY (15) --- Cold Fusion Reactor Cold Fusion Reactor Carbon-fiber Leg Flexi-carbon Leg Advanced Targeting Computer Relay Coupler [NC] (27) Relay Coupler [NC] (33) Relay Coupler [Swarmer] (34) Relay Coupler [Sentry] (26) Relay Coupler [Sentry] (22) Relay Coupler [Sentry] (18) Quantum Rifle Proton Missile Launcher Remote Datajack Peak State ------------ > --- POWER ------------ Cold Fusion Reactor Cold Fusion Reactor > --- PROPULSION ------- Carbon-fiber Leg Carbon-fiber Leg Flexi-carbon Leg Flexi-carbon Leg > --- UTILITY ---------- Advanced Heat Sink Large Storage Unit Advanced Signal Interpreter Cloaking Device Improved Light Armor Plating Improved Force Field Relay Coupler [Grunt] > --- WEAPON ----------- Mini Assault Cannon Remote Datajack > --- INVENTORY -------- Light Angular Momentum Engine Light Angular Momentum Engine Light Treads Light Treads Light Treads Improved Medium Treads Improved Heat Sink Advanced Targeting Computer Improved Propulsion Shielding Relay Coupler [NC] Advanced Beam Rifle Quantum Rifle Quantum Rifle Proton Missile Launcher [Rating: 71] Favorites ----------- Power Light Angular Momentum Engine Engine Light Angular Momentum Engine Power Core Fission Core Reactor Cold Fusion Reactor Propulsion Light Treads Treads Light Treads Leg Carbon-fiber Leg Flight Unit Biomechanical Wings Utility Large Storage Unit Device Advanced Heat Sink Storage Large Storage Unit Processor Advanced Visual Processing Unit Hackware Relay Coupler [NC] Protection Improved Light Armor Plating Weapon Improved Light Cannon Energy Gun Heavy Laser Ballistic Gun Gauss Rifle Ballistic Cannon Improved Light Cannon Launcher Proton Missile Launcher Special Weapon Remote Datajack Slashing Weapon Chainsword Build | -11 -10 -10 -10 -9 -8 -7 -7 -7 -6 -6 -6 -6 ------- Run | Yrd Mat Min Exi Min Mat Fac Was Fac Fac Gar Fac Gar Slots Evolved 8 | . . . . . 4 2 . . 2 . . . Power 1 | . . . . . . . . . 1 . . . Propulsion 2 | . . . . . 1 1 . . . . . . Utility 5 | . . . . . 3 1 . . 1 . . . Weapon . | . . . . . . . . . . . . . Parts Attached 129 | 6 5 2 1 . 10 2 1 19 24 39 7 13 Power 19 | 1 1 . 1 . 1 . . 2 5 4 3 1 Engine 13 | 1 1 . 1 . 1 . . 1 4 2 1 1 Core 4 | . . . . . . . . 1 1 2 . . Reactor 2 | . . . . . . . . . . . 2 . Propulsion 41 | 2 . . . . 3 1 . 7 8 16 1 3 Treads 17 | 2 . . . . 3 1 . 1 6 1 . 3 Leg 23 | . . . . . . . . 6 1 15 1 . Wheel . | . . . . . . . . . . . . . Hover . | . . . . . . . . . . . . . Flight 1 | . . . . . . . . . 1 . . . Utility 43 | 1 2 . . . 4 1 . 4 9 14 2 6 Device 18 | . 1 . . . 1 1 . 1 2 10 1 1 Storage 3 | 1 1 . . . . . . 1 . . . . Processor 7 | . . . . . 2 . . 1 3 1 . . Hackware 6 | . . . . . . . . . 2 1 1 2 Protection 9 | . . . . . 1 . . 1 2 2 . 3 Artifact . | . . . . . . . . . . . . . Weapon 26 | 2 2 2 . . 2 . 1 6 2 5 1 3 Energy Gun 11 | 1 . . . . . . . 3 1 3 . 3 Energy Cannon . | . . . . . . . . . . . . . Ballistic Gun 3 | 1 . . . . 2 . . . . . . . Ballistic Cannon 6 | . 2 1 . . . . 1 1 . 1 . . Launcher 3 | . . 1 . . . . . . 1 1 . . Special Weapon 1 | . . . . . . . . . . . 1 . Impact Weapon . | . . . . . . . . . . . . . Slashing Weapon 2 | . . . . . . . . 2 . . . . Piercing Weapon . | . . . . . . . . . . . . . Special Melee Weapon . | . . . . . . . . . . . . . Unidentified Prototypes 7 | . . . . . 1 . . 2 2 . 1 1 Parts Lost 49 | . . 2 . . . . 3 4 8 22 . 10 Power 9 | . . 1 . . . . . 2 2 3 . 1 Propulsion 14 | . . . . . . . 1 1 2 7 . 3 Utility 19 | . . . . . . . 1 1 2 10 . 5 Weapon 7 | . . 1 . . . . 1 . 2 2 . 1 Highest Loss Streak 12 | . . 2 . . . . 3 3 4 12 . 4 To Critical Strikes . | . . . . . . . . . . . . . Average Backups 11 | 1 8 12 14 15 13 14 9 4 10 13 14 13 Power 1 | . 1 1 1 1 1 2 1 . . 1 1 1 Propulsion 2 | . 2 3 3 3 3 2 . . 2 3 4 2 Utility 3 | . . 3 4 5 2 2 2 1 3 3 4 5 Weapon 4 | . 3 5 6 6 6 8 4 2 4 3 4 3 Tool/Special . | . . . . . . . . . . . . . Unused Backups 37 | . 2 1 . 1 5 . 10 1 4 4 2 7 Power 4 | . 1 . . . . . 1 . . 2 . . Propulsion 6 | . . . . . 2 . 2 . 2 . . . Utility 11 | . . . . 1 . . 1 . . 1 1 7 Weapon 16 | . 1 1 . . 3 . 6 1 2 1 1 . Tool/Special . | . . . . . . . . . . . . . Average Slot Usage (%) 88 | . 92 94 100 100 95 93 59 69 83 89 98 91 Engine 7 | . 14 8 14 14 9 7 3 . 6 5 2 10 Core 1 | . . . . . . . . 1 . 5 . . Treads 17 | . 28 28 28 28 26 30 12 6 18 4 . 21 Leg 8 | . . . . . . . . 15 6 21 26 3 Device 11 | . 7 14 14 14 9 8 15 12 6 17 20 5 Storage 7 | . 14 14 14 14 9 7 3 . 6 6 6 6 Processor 8 | . . . . . 15 15 11 13 19 7 6 6 Hackware 2 | . . . . . . . . . 4 2 5 7 Protection 4 | . . . . . 7 7 3 4 4 4 6 14 Energy Gun 2 | . 4 . . . . . . 4 1 6 1 4 Ballistic Gun 1 | . 4 . . . 12 15 6 . . . . . Ballistic Cannon 8 | . 19 27 28 28 5 . 2 . . 1 6 3 Slashing Weapon 2 | . . . . . . . . 6 6 2 . . Peak Build Rating 71 | 6 10 12 12 13 44 51 51 50 62 70 71 70 Average Rating 37 | 4 8 9 12 12 39 47 31 36 46 57 68 54 On Entrance 30 | . 6 10 12 12 13 44 51 20 42 54 63 71 Naked Turns . | . . . . . . . . . . . . . Heaviest Build 70 | 14 34 36 36 34 38 38 38 41 47 64 68 70 Greatest Support 106 | 40 40 40 40 40 84 106 106 54 80 70 70 90 Greatest Overweight (x) 2 | . . . . . 1 . 2 . 1 1 1 . Average Overweight (x) . | . . . . . . . . . . . . . Largest Inventory Capacity 15 | 8 15 15 15 15 15 15 15 15 15 15 15 15 Average Capacity 13 | 7 13 15 15 15 15 15 9 6 15 15 15 15 Most Carried 15 | 4 13 15 15 15 15 15 15 5 15 15 15 15 Average Carried 11 | 1 8 12 14 15 13 14 8 4 10 13 14 13 Final Capacity 15 | 8 15 15 15 15 15 15 5 15 15 15 15 15 Final Carried 15 | 4 13 15 15 15 15 15 4 5 15 15 14 14 Class Distribution -------------------- 46% | Mutant 38% | Scavenger-Mutant 8% | Skirmisher 3% | Bothacker-Mutant 3% | Hacker-Mutant Dominant Class ---------------- Mutant | -10/Materials Mutant | -10/Mines Mutant | -10/Exiles Mutant | -9/Mines Skirmisher | -8/Materials Skirmisher | -7/Factory Mutant | -7/Waste Mutant | -7/Factory Mutant | -6/Factory Scavenger-Mutant | -6/Garrison Scavenger-Mutant | -6/Factory Scavenger-Mutant | -6/Garrison Resources | -11 -10 -10 -10 -9 -8 -7 -7 -7 -6 -6 -6 -6 ----------- Run | Yrd Mat Min Exi Min Mat Fac Was Fac Fac Gar Fac Gar Matter Collected 2566 | 165 183 174 . 70 276 . . 378 222 684 135 279 Remotely 306 | . 62 174 . 70 . . . . . . . . Salvage Created 3454 | . 171 52 . 20 239 . . 667 928 1033 64 280 Parts 152 | . 14 2 . 7 12 . . 28 35 39 7 8 Haulers Intercepted . | . . . . . . . . . . . . . Recyclers Shooed 6 | . . . . . 2 . . . 2 . 2 . Parts Field Recycled . | . . . . . . . . . . . . . Retrieved Matter . | . . . . . . . . . . . . . Parts Self-Destructed . | . . . . . . . . . . . . . Prevented . | . . . . . . . . . . . . . Kills | -11 -10 -10 -10 -9 -8 -7 -7 -7 -6 -6 -6 -6 ------- Run | Yrd Mat Min Exi Min Mat Fac Was Fac Fac Gar Fac Gar Combat Hostiles Destroyed 74 | . 3 10 . 3 3 . . 10 12 23 2 8 Melee 29 | . . . . . . . . 10 12 4 . 3 Guns 15 | . 3 . . . 3 . . . . 8 . 1 Cannons 15 | . . 9 . 3 . . . . . 1 2 . AOE 14 | . . 1 . . . . . . . 9 . 4 Classes Destroyed 14 | . 4 3 . 1 2 . . 1 2 . . 1 Worker 4 | . 1 . . . 1 . . 2 . . . . Builder 1 | . 1 . . . . . . . . . . . Tunneler 1 | . . 1 . . . . . . . . . . Recycler 3 | . . . . . 1 . . 1 1 . . . Watcher 1 | . 1 . . . . . . . . . . . Swarmer 20 | . . . . 3 2 . . . . 11 . 4 Saboteur 1 | . . . . . . . . . . . . 1 Grunt 28 | . 3 . . . 1 . . 6 7 8 . 3 Brawler 2 | . . . . . . . . . 1 1 . . Sentry 8 | . . . . . 1 . . 2 2 3 . . Demolisher 1 | . . 1 . . . . . . . . . . Hunter 1 | . . . . . . . . . 1 . . . Programmer 5 | . . . . . . . . 2 1 . 2 . Assembled 9 | . . 9 . . . . . . . . . . Best Kill Streak 10 | . 3 10 . 3 3 . . 5 5 8 2 4 Combat Bots Only 9 | . 3 9 . 3 2 . . 5 5 8 2 4 Max Kills in Single Turn 3 | . 1 1 . 2 1 . . 1 1 3 1 2 Gunslinging . | . . . . . . . . . . . . . Exploded 3 | . . 1 . . . . . . . 3 . 2 Melee 1 | . . . . . . . . 1 1 1 . 1 Uniques/NPCs Destroyed . | . . . . . . . . . . . . . Combat | -11 -10 -10 -10 -9 -8 -7 -7 -7 -6 -6 -6 -6 -------- Run | Yrd Mat Min Exi Min Mat Fac Was Fac Fac Gar Fac Gar Hostile Shots Fired 845 | . 1 48 . 13 10 . 3 164 219 297 13 77 Missed 279 | . . 19 . . 1 . . 64 79 90 3 23 Hits 566 | . 1 29 . 13 9 . 3 100 140 207 10 54 Melee 34 | . . 1 . . . . 3 . . 8 . 22 Projectile 532 | . 1 28 . 13 9 . . 100 140 199 10 32 AOE 1 | . . 1 . . . . . . . . . . Critical Strikes 16 | . . . . . . . 2 3 5 3 . 3 Actively Blocked 1 | . . . . . . . . . . . . 1 Part Disruptions 1 | . . . . . . . . . . . 1 . Damage Taken 8016 | . 12 504 . 107 82 . 130 1023 2018 2557 78 1505 Core 1266 | . . 76 . 26 6 . 88 210 257 346 . 257 Absorbed by Shields 174 | . . . . . . . . . . 93 81 . Redirected to Shielding 274 | . . . . . . . . . . 45 . 229 Core Remaining (%) 78 | 100 . . . 59 98 . . 57 . . . . Volleys Fired 193 | . 13 20 . 5 14 . 13 1 4 58 19 46 Largest 2 | . 2 2 . 2 2 . 1 1 1 2 1 2 Hottest 188 | . 70 66 . 70 65 . 37 69 39 138 40 188 Shots Fired 293 | . 25 34 . 10 28 . 13 2 4 103 18 56 Gun 136 | . 21 . . . 21 . . 2 . 66 . 26 Cannon 123 | . 4 31 . 10 7 . 13 . . 28 8 22 Launcher 19 | . . 3 . . . . . . 4 9 . 3 Special 15 | . . . . . . . . . . . 10 5 Kinetic 155 | . 15 31 . 10 28 . 13 . . 28 8 22 Thermal 104 | . 10 . . . . . . 2 . 66 . 26 Explosive 3 | . . 3 . . . . . . . . . . Electromagnetic 16 | . . . . . . . . . 4 9 . 3 Robot Hit Streak 13 | . 6 6 . 4 5 . . . 3 13 6 5 Robot Miss Streak 8 | . 1 4 . 4 6 . . 1 . 8 4 3 Penetration Max 1 | . . . . . 1 . . . . . . . Secondary Targets 5 | . 2 . . . . . . . . 2 . 1 Max Gunslinging Chain 1 | . 1 . . . . . . . . 1 . 1 Shots Hit Robots 260 | . 19 17 . 5 12 . . 34 57 75 11 30 Core Hits 152 | . 11 15 . 6 16 . . 15 24 49 4 12 Critical Kills . | . . . . . . . . . . . . . Critical Parts Destroyed 1 | . . . . . 1 . . . . . . . Critical Strikes 23 | . 1 1 . . 1 . . 5 7 8 . . Burn 2 | . 1 . . . . . . . . 1 . . Destroy 1 | . . . . . 1 . . . . . . . Blast 1 | . . 1 . . . . . . . . . . Sever 19 | . . . . . . . . 5 7 7 . . Melee Attacks 153 | . . . . . . . . 42 78 33 . . Impact . | . . . . . . . . . . . . . Slashing 153 | . . . . . . . . 42 78 33 . . Piercing . | . . . . . . . . . . . . . Sneak Attacks 9 | . . . . . . . . 3 5 1 . . Combat Hostiles 1 | . . . . . . . . . . 1 . . Follow-up Attacks . | . . . . . . . . . . . . . Damage Inflicted 8835 | . 284 522 . 111 356 . . 1247 2504 2635 194 982 Guns 1522 | . 225 . . . 256 . . . . 643 . 398 Cannons 1475 | . 41 338 . 101 100 . . . . 407 189 299 Explosions 1364 | . . 184 . . . . . . 299 661 . 220 Melee 4353 | . . . . . . . . 1247 2185 921 . . Ramming 121 | . 18 . . 10 . . . . 20 3 5 65 Kinetic 1855 | . 165 338 . 101 356 . . . . 407 189 299 Thermal 1232 | . 101 . . . . . . . . 733 . 398 Explosive 184 | . . 184 . . . . . . . . . . Electromagnetic 1090 | . . . . . . . . . 299 571 . 220 Impact . | . . . . . . . . . . . . . Slashing 4353 | . . . . . . . . 1247 2185 921 . . Piercing . | . . . . . . . . . . . . . Highest Corruption 20 | . . . . . . . 17 20 5 17 13 15 Average Corruption 10 | . . . . . . . 9 17 2 9 10 13 Corruption Purged 14 | . . . . . . . . . 5 9 . . Corruption Blocked . | . . . . . . . . . . . . . Effects 144 | . . . . . . . 5 39 14 45 18 23 Message Errors 30 | . . . . . . . . 9 4 7 6 4 Matter Fused 36 | . . . . . . . 1 10 3 11 4 7 Heat Flow Errors 18 | . . . . . . . 1 6 3 3 1 4 Energy Discharges 18 | . . . . . . . 1 6 2 8 . 1 Parts Rejected 4 | . . . . . . . . . 1 1 1 1 Parts Fused 1 | . . . . . . . . . . 1 . . Data Loss (minor) 19 | . . . . . . . 2 4 1 5 4 3 Data Loss (major) 3 | . . . . . . . . 1 . 1 1 . Misfires 6 | . . . . . . . . 1 . 3 . 2 Alerts 4 | . . . . . . . . 1 . 2 . 1 Misdirections 1 | . . . . . . . . 1 . . . . Weapon Failures 4 | . . . . . . . . . . 3 1 . Overload Shots . | . . . . . . . . . . . . . Overflow Damage 397 | . . 6 . . . . . 140 230 1 . 20 Projectiles 1 | . . . . . . . . . . 1 . . Explosions 26 | . . 6 . . . . . . . . . 20 Melee 370 | . . . . . . . . 140 230 . . . Knockbacks 28 | . . 2 . 4 1 . . . 2 7 3 9 Impact 2 | . . . . . . . . . 1 . . 1 Kinetic 25 | . . 2 . 4 1 . . . . 7 3 8 Secondary 1 | . . . . . . . . . 1 . . . Self-Inflicted Damage 64 | . . 64 . . . . . . . . . . Shots 2 | . . 2 . . . . . . . . . . Rammed 28 | . 4 . . 3 . . . . 1 . . 20 Targets Rammed 34 | . 4 . . 3 . . . 1 1 1 2 22 Kicked 4 | . . . . . . . . 1 . 1 2 . Crushed 2 | . . . . . . . . . . . . 2 Highest Temperature 419 | . 51 18 . 27 7 . 111 249 261 160 226 419 Average Temperature 97 | . 21 8 . 12 4 . 20 105 105 59 127 193 Received Heat Transfer 1931 | . 6 . . . 18 . . 300 852 600 8 147 Effects 5 | . . . . . . . . . . . . 5 Shutdowns 3 | . . . . . . . . . . . . 3 Matter Decay 1 | . . . . . . . . . . . . 1 Damage (minor) 1 | . . . . . . . . . . . . 1 Siege Activations . | . . . . . . . . . . . . . Martial Activations . | . . . . . . . . . . . . . Shielding Activations . | . . . . . . . . . . . . . Robots Disrupted 1 | . . . . . . . . . . 1 . . Combat Hostiles 1 | . . . . . . . . . . 1 . . Robots Corrupted 1 | . . . . . . . . . . 1 . . Combat Hostiles 1 | . . . . . . . . . . 1 . . Parts Fried 8 | . . . . . . . . . . 6 . 2 Impact Corruptions . | . . . . . . . . . . . . . Robots Melted . | . . . . . . . . . . . . . Combat Hostiles . | . . . . . . . . . . . . . Parts Melted 3 | . 1 . . . . . . . . 2 . . Heat Transferred 2320 | . 370 . . . . . . . . 1432 . 518 Parts Sabotaged 11 | . . . . . . . . . . . . 11 Parts Stolen . | . . . . . . . . . . . . . Parts Stripped . | . . . . . . . . . . . . . Power Chain Reactions 3 | . . . . . . . . . . 1 . 2 Alert | -11 -10 -10 -10 -9 -8 -7 -7 -7 -6 -6 -6 -6 ------- Run | Yrd Mat Min Exi Min Mat Fac Was Fac Fac Gar Fac Gar Maximum Alert Level 2 | . . . . . 1 . . . 1 2 1 1 Low Security (%) 61 | 100 100 100 . 100 30 100 100 100 53 15 31 26 Level 1 31 | . . . . . 69 . . . 46 49 68 73 Level 2 6 | . . . . . . . . . . 34 . . Level 3 . | . . . . . . . . . . . . . Level 4 . | . . . . . . . . . . . . . Level 5 . | . . . . . . . . . . . . . High Security . | . . . . . . . . . . . . . Max Security . | . . . . . . . . . . . . . Peak Influence 661 | . 70 31 . 192 350 137 5 105 303 661 346 392 Initial 346 | . . . . . 68 137 5 . 14 158 346 107 Average 155 | . 8 1 . 30 226 79 . 29 130 382 241 288 Influence Increases 3083 | . 96 71 . 289 482 . 2 309 585 883 61 305 Destroy 0b10 Robot/C 1700 | . 60 20 . 200 200 . . 200 240 580 40 160 Destroy 0b10 Robot/NC 85 | . 15 5 . . 40 . . 15 5 5 . . Destroy Leader 250 | . 12 10 . 30 38 . . 60 60 20 20 . Allied During Kill 133 | . . . . 59 55 . . . . 19 . . Successful Hack 47 | . 9 . . . 10 . . . 14 . . 14 Disable Machine 165 | . . 15 . . 120 . . . 30 . . . Anti-Garrison Action 300 | . . . . . . . . . . 200 . 100 Destroy Structure 133 | . . 21 . . 19 . 2 4 11 44 1 31 Lose Combat Pursuer 270 | . . . . . . . . 30 225 15 . . Influence Decreases 2801 | . 96 71 . 113 354 287 19 280 387 449 569 176 Entered New Map 732 | . . . . . 108 167 12 . 15 69 315 46 Time Decay 1414 | . 96 51 . 113 206 120 7 252 355 . 214 . Lost Part 385 | . . 20 . . . . . 28 17 220 . 100 Lost Ally 270 | . . . . . 40 . . . . 160 40 30 Squads Dispatched 10 | . . . . . . . . 3 5 . 2 . Investigation 4 | . . . . . . . . 1 3 . . . Extermination 5 | . . . . . . . . 2 2 . 1 . Reinforcement 1 | . . . . . . . . . . . 1 . Assault . | . . . . . . . . . . . . . Garrison . | . . . . . . . . . . . . . Intercept . | . . . . . . . . . . . . . Searches Triggered . | . . . . . . . . . . . . . Construction Impeded . | . . . . . . . . . . . . . Haulers Reinforced . | . . . . . . . . . . . . . Active Scanning Responses . | . . . . . . . . . . . . . Cargo Convoy Interrupts 1 | . . . . . . . . . 1 . . . Stealth | -11 -10 -10 -10 -9 -8 -7 -7 -7 -6 -6 -6 -6 --------- Run | Yrd Mat Min Exi Min Mat Fac Was Fac Fac Gar Fac Gar Distress Signals 5 | . . . . . 1 . . 2 . . 2 . Communications Jammed . | . . . . . . . . . . . . . Distress Signals . | . . . . . . . . . . . . . Times Spotted 140 | . 8 11 . 10 7 . 5 16 29 31 9 14 Peak Tracking Total 8 | . 4 8 . 4 4 . 5 7 5 7 6 7 Tactical Retreats 11 | . . 1 . . . . 1 2 6 1 . . Traps | -11 -10 -10 -10 -9 -8 -7 -7 -7 -6 -6 -6 -6 ------- Run | Yrd Mat Min Exi Min Mat Fac Was Fac Fac Gar Fac Gar Traps Triggered 9 | . . . . . 2 1 . 1 1 1 . 3 Indirectly 1 | . . . . . . . . . 1 . . . Trap Hack Attempts . | . . . . . . . . . . . . . Triggered . | . . . . . . . . . . . . . Disarmed 5 | . . . . . . . . . 5 . . . Reprogrammed . | . . . . . . . . . . . . . Reused . | . . . . . . . . . . . . . Traps Extracted . | . . . . . . . . . . . . . Installed . | . . . . . . . . . . . . . Triggered . | . . . . . . . . . . . . . Machines | -11 -10 -10 -10 -9 -8 -7 -7 -7 -6 -6 -6 -6 ---------- Run | Yrd Mat Min Exi Min Mat Fac Was Fac Fac Gar Fac Gar Machines Disabled 16 | . . 1 . . 8 . . . 2 2 . 3 Max in Single Turn 1 | . . 1 . . . . . . 1 1 . 1 Garrison Relay 4 | . . . . . . . . . . 2 . 2 Phase Generator 1 | . . . . . . . . . . . . 1 Machines Repaired . | . . . . . . . . . . . . . Machines Dismantled . | . . . . . . . . . . . . . Machines Sabotaged . | . . . . . . . . . . . . . Overloaded Fab Kills . | . . . . . . . . . . . . . Hacking | -11 -10 -10 -10 -9 -8 -7 -7 -7 -6 -6 -6 -6 --------- Run | Yrd Mat Min Exi Min Mat Fac Was Fac Fac Gar Fac Gar Machines Accessed 14 | . 2 1 . . 2 . . 2 4 1 1 1 Terminals 8 | . 2 . . . 1 . . 1 2 1 . 1 Fabricators 2 | . . . . . . . . 1 1 . . . Repair Stations . | . . . . . . . . . . . . . Recycling Units . | . . . . . . . . . . . . . Scanalyzers 1 | . . . . . 1 . . . . . . . Garrison Access 2 | . . . . . . . . . 1 . 1 . Total Hacks 45 | . 7 1 . . 14 . . 6 12 2 2 1 Successful 31 | . 3 1 . . 13 . . 3 8 . 2 1 Failed 14 | . 4 . . . 1 . . 3 4 2 . . Catastrophic 2 | . 1 . . . . . . . 1 . . . Database Lockouts . | . . . . . . . . . . . . . Manual . | . . . . . . . . . . . . . Terminals 21 | . 7 . . . 2 . . 2 7 2 . 1 Fabricators 7 | . . . . . . . . 4 3 . . . Repair Stations . | . . . . . . . . . . . . . Recycling Units . | . . . . . . . . . . . . . Scanalyzers 12 | . . . . . 12 . . . . . . . Garrison Access 4 | . . . . . . . . . 2 . 2 . Terminal Hacks 11 | . 3 1 . . 1 . . 1 4 . . 1 Prototype ID Bank 1 | . 1 . . . . . . . . . . . Open Door 1 | . . 1 . . . . . . . . . . Emergency Access Points 1 | . . . . . . . . . . . . 1 Alert Level 2 | . . . . . 1 . . . 1 . . . Locate Traps 4 | . 2 . . . . . . 1 1 . . . Disarm Traps 1 | . . . . . . . . . 1 . . . Registered Components 1 | . . . . . . . . . 1 . . . Fabricator Hacks 5 | . . . . . . . . 2 3 . . . Network Status 2 | . . . . . . . . 1 1 . . . Load Schematic 2 | . . . . . . . . 1 1 . . . Build 1 | . . . . . . . . . 1 . . . Repair Station Hacks . | . . . . . . . . . . . . . Recycling Unit Hacks . | . . . . . . . . . . . . . Scanalyzer 12 | . . . . . 12 . . . . . . . Insert Component 6 | . . . . . 6 . . . . . . . Analyze 6 | . . . . . 6 . . . . . . . Garrison Access Hacks 3 | . . . . . . . . . 1 . 2 . Unlock Access 2 | . . . . . . . . . 1 . 1 . Coupler Status 1 | . . . . . . . . . . . 1 . Unauthorized Hacks . | . . . . . . . . . . . . . Terminals . | . . . . . . . . . . . . . Fabricators . | . . . . . . . . . . . . . Repair Stations . | . . . . . . . . . . . . . Recycling Units . | . . . . . . . . . . . . . Scanalyzers . | . . . . . . . . . . . . . Garrison Access . | . . . . . . . . . . . . . Data Cores Recovered . | . . . . . . . . . . . . . Used . | . . . . . . . . . . . . . Hacking Detections 10 | . 2 . . . 1 . . 2 3 1 1 . Full Trace Events 3 | . . . . . . . . . 3 . . . Feedback Events 1 | . . . . . . . . . 1 . . . Corruption 1 | . . . . . . . . . 1 . . . Feedback Blocked . | . . . . . . . . . . . . . Robot Schematics Acquired . | . . . . . . . . . . . . . Robots Built . | . . . . . . . . . . . . . Authchips . | . . . . . . . . . . . . . Time . | . . . . . . . . . . . . . Total Robot Build Rating . | . . . . . . . . . . . . . Part Schematics Acquired 6 | . . . . . 6 . . . . . . . Parts Built 2 | . . . . . . . . . 2 . . . Authchips . | . . . . . . . . . . . . . Time 51 | . . . . . . . . . 51 . . . Total Part Build Rating 2 | . . . . . . . . . 2 . . . Parts Repaired . | . . . . . . . . . . . . . Time . | . . . . . . . . . . . . . Parts Recycled . | . . . . . . . . . . . . . Recycled Matter . | . . . . . . . . . . . . . Retrieved Matter . | . . . . . . . . . . . . . Retrieved Components . | . . . . . . . . . . . . . Parts Scanalyzed 6 | . . . . . 6 . . . . . . . Part Schematics Acquired 6 | . . . . . 6 . . . . . . . Parts Damaged . | . . . . . . . . . . . . . Bothacking | -11 -10 -10 -10 -9 -8 -7 -7 -7 -6 -6 -6 -6 ------------ Run | Yrd Mat Min Exi Min Mat Fac Was Fac Fac Gar Fac Gar Used RIF Installer 3 | . . . . . . . . . . 2 . 1 Command Fork 1 | . . . . . . . . . . 1 . . Signal Jammer 1 | . . . . . . . . . . . . 1 Robots Hacked 8 | . . . . . . . . . . . 5 3 Non-combat 3 | . . . . . . . . . . . 3 . Combat 5 | . . . . . . . . . . . 2 3 Robot Hacks Applied 9 | . . . . . . . . . . . 5 4 parse_system 2 | . . . . . . . . . . . . 2 locate_stockpiles 1 | . . . . . . . . . . . 1 . overload_power 1 | . . . . . . . . . . . . 1 amplify_resonance 1 | . . . . . . . . . . . 1 . formatsys_high 4 | . . . . . . . . . . . 3 1 Relay Couplers Released 18 | . . . . . . . . . . 9 . 9 Machine Destruction 18 | . . . . . . . . . . 9 . 9 Attached 4 | . . . . . . . . . . 1 1 2 Fabnet Peak Effective % . | . . . . . . . . . . . . . Robots Rewired 9 | . . . . . . . . . . 9 . . Allies Hacked . | . . . . . . . . . . . . . Hacks Repelled . | . . . . . . . . . . . . . Allies | -11 -10 -10 -10 -9 -8 -7 -7 -7 -6 -6 -6 -6 -------- Run | Yrd Mat Min Exi Min Mat Fac Was Fac Fac Gar Fac Gar Total Allies 18 | . . 3 . 2 . . . . . 9 3 1 Largest Group 5 | . . 3 3 5 5 . . . . 5 2 1 Highest-Rated Group 181 | . . 40 40 82 82 . . . . 181 42 32 Highest-Rated Ally 41 | . . 16 16 31 31 . . . . 41 29 32 Total Orders . | . . . . . . . . . . . . . Ally Attacks 102 | . . . . 19 35 . . . . 42 4 2 Total Damage 2004 | . . . . 203 860 . . . . 811 57 73 Kills 26 | . . . . 7 13 . . . . 6 . . Allies Corrupted . | . . . . . . . . . . . . . Allies Melted . | . . . . . . . . . . . . . Intel | -11 -10 -10 -10 -9 -8 -7 -7 -7 -6 -6 -6 -6 ------- Run | Yrd Mat Min Exi Min Mat Fac Was Fac Fac Gar Fac Gar Active Infowar (turns) 3764 | . . . . . 394 246 136 844 1271 460 343 70 Optics 3350 | . . . . . 393 246 136 844 1271 460 . . Sensors 1342 | . . . . . 389 246 136 536 35 . . . Cloaking 413 | . . . . . . . . . . . 343 70 Robot Analysis Total . | . . . . . . . . . . . . . Derelict Logs Recovered 2 | . . 2 . . . . . . . . . . Drone Launches . | . . . . . . . . . . . . . Drone Recoveries . | . . . . . . . . . . . . . Exploration | -11 -10 -10 -10 -9 -8 -7 -7 -7 -6 -6 -6 -6 ------------- Run | Yrd Mat Min Exi Min Mat Fac Was Fac Fac Gar Fac Gar Turns Passed 7709 | 90 630 703 399 550 434 246 136 844 1271 1392 455 559 Spaces Moved 4292 | 53 351 395 248 322 211 156 99 594 610 703 312 238 Core 173 | 6 . . . . . . 65 102 . . . . Treads 2601 | 47 351 395 248 322 211 156 34 92 448 110 . 187 Legs 1518 | . . . . . . . . 400 162 593 312 51 Wheels . | . . . . . . . . . . . . . Hover . | . . . . . . . . . . . . . Flight . | . . . . . . . . . . . . . Fastest Speed 50 | 50 160 160 160 160 160 156 50 50 120 120 120 120 Average Speed 143 | 147 160 160 160 160 160 156 110 114 156 127 120 151 Slowest Speed 250 | 160 160 160 160 160 240 156 156 160 250 190 190 160 Overloaded Moves . | . . . . . . . . . . . . . Propulsion Burnouts . | . . . . . . . . . . . . . Robots Hopped 1 | . . . . . 1 . . . . . . . Potential Cave-ins 4 | . . . . . . . 4 . . . . . Cave-ins Triggered . | . . . . . . . . . . . . . Exploration Rate (%) 40 | 5 60 83 61 46 37 5 91 18 20 65 10 23 Regions Visited 12 Branch Regions 3 Pre-discovered Areas . | . . . . . . . . . . . . . Known Exits Taken 5 | . . . 1 . 1 . . 1 1 . 1 . Unknown Exits Taken 4 | 1 1 1 . 1 . . . . . . . . Scrap Searched 2 | . . . . 2 . . . . . . . . Spaces Dug 29 | . . . . . . . 6 4 11 2 . 6 Terrain Destroyed 57 | . . 25 . . . . 6 4 11 4 1 6 Melee 17 | . . . . . . . . 4 11 2 . . Projectile 13 | . . 6 . . . . 6 . . . 1 . AOE 27 | . . 19 . . . . . . . 2 . 6 Terrain Rammed . | . . . . . . . . . . . . . Walls Destroyed . | . . . . . . . . . . . . . Machines Disabled . | . . . . . . . . . . . . . Actions | -11 -10 -10 -10 -9 -8 -7 -7 -7 -6 -6 -6 -6 --------- Run | Yrd Mat Min Exi Min Mat Fac Was Fac Fac Gar Fac Gar Total 5348 | 62 392 432 250 346 280 159 118 694 799 1070 378 368 Wait 234 | . 5 7 . 15 21 . . 22 50 74 23 17 Move 4278 | 52 350 394 247 321 208 156 98 593 609 701 311 238 Hop 1 | . . . . . 1 . . . . . . . Pick Up 101 | 4 12 5 1 1 10 1 1 3 18 23 6 16 Fast Attach 60 | 6 1 . . . 5 1 1 12 17 13 1 3 Attach 48 | . 1 2 . . 4 1 1 2 3 17 3 14 Detach 5 | . . . . . 1 . . 2 . 2 . . Swap 50 | . 3 2 1 . 6 . . 7 5 17 4 5 Drop 77 | . 3 2 1 1 10 . 4 9 14 20 7 6 Fire 193 | . 13 20 . 5 14 . 13 1 4 58 19 46 Melee 153 | . . . . . . . . 42 78 33 . . Ram . | . . . . . . . . . . . . . Kick 4 | . . . . . . . . 1 . 1 2 . Crush 30 | . 4 . . 3 . . . . 1 . . 22 Escape Stasis 5 | . . . . . . . . . . 5 . . Rewire 109 | . . . . . . . . . . 106 2 1 Trap . | . . . . . . . . . . . . . Miscellaneous . | . . . . . . . . . . . . . Route ------- -11/Scrapyard -10/Materials (discovered 2 exits: [*Mat] / *Min) -10/Mines (discovered 3 exits: [*Mat x2] / *Exi) -10/Exiles (discovered 2 exits: *Min x2) -9/Mines -8/Materials (discovered 2 exits: *Fac x2) -7/Factory -7/Waste -7/Factory -6/Factory -6/Garrison (discovered 2 exits: *Fac x2) -6/Factory -6/Garrison History --------- Turn | Location | Event 9 | -11/Scrapyard | Discovered new exit (range 16) 91 | -11/Scrapyard | Entered Materials 92 | -10/Materials | Met a group of wandering Federalists 149 | -10/Materials | Discovered new exit (range 13) 228 | -10/Materials | Lost 4 allies 300 | -10/Materials | Build established: Mutant 324 | -10/Materials | Discovered new exit (range 13) 721 | -10/Materials | Entered Mines 732 | -10/Mines | Assembled infested the area 737 | -10/Mines | Assisted by a Guerilla fighting off Assembled 833 | -10/Mines | Destroyed 9 combat bots 1150 | -10/Mines | Discovered new exit (range 5) 1189 | -10/Mines | Assisted by bots powering up and referring to "LRC-V3" 1254 | -10/Mines | Discovered new exit (range 8) 1278 | -10/Mines | Met a Derelict who couldn't figure out how to use a Trap Extractor 1340 | -10/Mines | Learned location of 1 exit from Materials 1415 | -10/Mines | Deemed a non-threat by the Exiles lab entrance 1415 | -10/Mines | Discovered new exit (range 5) 1424 | -10/Mines | Entered Exiles 1424 | -10/Exiles | Accompanied by 3 allies 1425 | -10/Exiles | Identified exit to Mines 1463 | -10/Exiles | Met 8R-AWN 1490 | -10/Exiles | Met EX-HEX 1544 | -10/Exiles | Met EX-BIN 1709 | -10/Exiles | Met EX-DEC 1823 | -10/Exiles | Entered Mines 1823 | -9/Mines | Accompanied by 3 allies 2063 | -9/Mines | Found a damaged Exp. Sensor Array with a note attached 2113 | -9/Mines | Found Prototype Device 2350 | -9/Mines | Discovered new exit (range 7) 2373 | -9/Mines | Entered Materials 2373 | -8/Materials | Accompanied by 5 allies 2373 | -8/Materials | Evolved 4 slots: Propulsion x1, Utility x3 2374 | -8/Materials | Identified exit to Factory 2378 | -8/Materials | Led the pair of lost Derelicts to an unsafe place 2413 | -8/Materials | Identified Exp. Sensor Array 2754 | -8/Materials | Build established: Skirmisher 2762 | -8/Materials | Discovered exit to Factory (range 20) 2807 | -8/Materials | Entered Factory 2807 | -7/Factory | Evolved 2 slots: Propulsion x1, Utility x1 2883 | -7/Factory | Discovered new exit (range 10) 2897 | -7/Factory | Identified exit to Factory 3053 | -7/Factory | Sucked down chute 3053 | -7/Factory | Entered Waste 3068 | -7/Waste | EMP discharged 3092 | -7/Waste | Spotted C-40 Crusher 3094 | -7/Waste | Spotted C-40 Crusher 3105 | -7/Waste | Crushed by Compactor (1 part destroyed, 2 dropped) 3108 | -7/Waste | Crushed by Compactor (1 part destroyed, 2 dropped) 3112 | -7/Waste | Spotted C-40 Crusher 3112 | -7/Waste | Spotted C-40 Crusher 3115 | -7/Waste | Crushed by Compactor (1 part destroyed, 1 dropped) 3116 | -7/Waste | Spotted C-40 Crusher 3146 | -7/Waste | Lost 3 parts (1n1u1w) 3166 | -7/Waste | Discovered new exit (range 16) 3168 | -7/Waste | EMP discharged 3168 | -7/Waste | System corruption reached 10% 3189 | -7/Waste | Entered Factory 3385 | -7/Factory | Build established: Mutant 3749 | -7/Factory | Build established: Scavenger-Mutant 3960 | -7/Factory | Discovered exit to Factory (range 11) 4033 | -7/Factory | Entered another Factory area 4033 | -6/Factory | Evolved 2 slots: Power x1, Utility x1 4042 | -6/Factory | Lost 3 parts (1p1n1u) 4106 | -6/Factory | Build established: Mutant 4279 | -6/Factory | Fabricated Lgt. Armor Plating? 4296 | -6/Factory | Lost 4 parts (2n1u1w) 4826 | -6/Factory | Cargo convoy interrupted 5176 | -6/Factory | Build established: Scavenger-Mutant 5302 | -6/Factory | Identified exit to Garrison 5304 | -6/Factory | Entered Garrison 5319 | -6/Garrison | Installed Relay Interface Framework 5552 | -6/Garrison | Triggered checkpoint 5585 | -6/Garrison | Destroyed 8 combat bots 5591 | -6/Garrison | Lost 4 parts (1n3u) 5638 | -6/Garrison | Expanded RIF knowledge: Command Fork 5763 | -6/Garrison | System corruption reached 10% 5769 | -6/Garrison | Core integrity fell below 50% 5815 | -6/Garrison | Lost 12 parts (2p4n5u1w) 5940 | -6/Garrison | Lost 3 allies 6124 | -6/Garrison | Garrison Relay disabled 6178 | -6/Garrison | Triggered checkpoint 6214 | -6/Garrison | Discovered new exit (range 10) 6216 | -6/Garrison | Lost 4 allies 6435 | -6/Garrison | Discovered new exit (range 9) 6538 | -6/Garrison | Identified exit to Factory 6556 | -6/Garrison | Triggered checkpoint 6650 | -6/Garrison | Garrison Relay disabled 6696 | -6/Garrison | Entered Factory 7006 | -6/Factory | Identified exit to Garrison 7151 | -6/Factory | Entered Garrison 7151 | -6/Garrison | Accompanied by 1 ally 7293 | -6/Garrison | Triggered checkpoint 7299 | -6/Garrison | Garrison Relay disabled 7370 | -6/Garrison | Garrison Relay disabled 7402 | -6/Garrison | Expanded RIF knowledge: Signal Jamming 7590 | -6/Garrison | Phase Generator disabled 7615 | -6/Garrison | Spotted Striker 7669 | -6/Garrison | Core integrity fell below 20% 7685 | -6/Garrison | Lost 4 parts (1n3u) 7710 | -6/Garrison | Destroyed by Striker with Plasma Lance Last Messages --------------- 07677_ RIF jams signal. 07679_ Slammed into Striker. 07680_ Triggered Alarm Trap. 07680_ RIF jams signal. 07682_ Slammed into Striker. 07685_ System corrupted: Quantum Rifle rejected. 07685_ Slammed into Striker. 07687_ Striker knocked back. 07689_ Machine disabled. 07695_ Mni. Assault Cannon destroyed. 07695_ Lgt. Angular Momentum Engine destroyed. 07695_ Slammed into Striker. 07700_ Lgt. Treads destroyed. 07700_ Slammed into Striker. 07701_ System corrupted: Matter fused (-9). 07701_ Slammed into Striker. 07705_ Acquired 6 matter. 07706_ Slammed into Striker. 07707_ Imp. Medium Treads destroyed. 07708_ Slammed into Striker. Map ----- +----------------------------------------------------+ | # [ #????????????????? | | "#????????????????? | | [ #????????????????? | | "#????????????????? | | [ ##????????????????? | | # ! ########??????????? | | " [ ### ### """"#??????????? | | " ! !"## " "#??????????? | | """" ""## ### """"#??????????? | | ######### #?#######??????????? | | ????????# #??????????????????? | | ????????# #??????????????????? | | ????????# #????#####?????????? | | ????????# #????# #?????????? | | ######### ###### #?????????? | | #?????????? | | #?????????? | | #########?? | | ####### ## ####+###""""""#?? | | ??## ## #?#" "" "#?? | | ??# # # # # #?#" "" "#?? | | ### # # ###" "" "#?? | | % % [#?? | | ### ###%" "" #?? | | ??## # #?##"%""K"#?? | | ?# #??#" ""@"#?? | | ?# #??#""""""#?? | | ?## ##??########?? | | ??# ##????????????? | | ??### ##????????????? | | ???## # # ##?????????????? | | ????### #####??????????????? | | ??????#####??????????????????? | | ?????????????????????????????? | | ?????????????????????????????? | | ?????????????????????????????? | | ?????????????????????????????? | | ???????#?????????????????????? | | ?????????????????????????????? | | ?????????????????????????????? | | ?????????????????????????????? | | ??????????????#??????????????? | | ???????#?????????????????????? | | ?????????????????????????????? | | ?#???????????????????????????? | | ????????????#????????????????? | | ?????????????????????????????? | | ?????????????????????????????? | | ?????????????????????????????? | | ?????????????????????????????? | +----------------------------------------------------+ Best States ------------- Heat Dissipation 56 Energy Generation 31 Energy Capacity 480 Matter Stores 300 Matter Capacity 300 Sight Range 20 Robot Scan Range 20 Terrain Scan Density 10 Cloak Strength 2 Armor Coverage 150 Propulsion Shielding 66 Weapon Cycling 30 Phase Shifting 5 Evasion (%) 55 Targeting Accuracy 6 Melee Accuracy 6 Recoil Reduction 6 Offensive Hacking 10 Defensive Hacking 10 Relay Coupler Types 2 Relay Coupler Value 31 Item Schematics ----------------- Exp. Sensor Array | -8/Materials | Scanalyzed Med. Treads | -8/Materials | Scanalyzed Lgt. Armor Plating | -8/Materials | Scanalyzed Gauss Rifle | -8/Materials | Scanalyzed Grenade Launcher | -8/Materials | Scanalyzed Lrg. Storage Unit | -8/Materials | Scanalyzed Robot Schematics ------------------ None Fabricated ------------ Lgt. Armor Plating | x2 | -6/Factory Repaired ---------- Nothing Alien Tech Used ----------------- None Achievements -------------- None Challenges ------------ None Game ------ Seed CorruptionGodBay Manual? 0 Play Time 01:18:41 Cumulative 65.9 hours Start 2025.05.18 @ 01:58:29 End 2025.05.19 @ 20:08:09 Sessions 5 Manual Loads 0 Difficulty Rogue Special Mode None Game No. 79 Rogue 78 Adventurer 1 Explorer 0 Win Type - Total 1 Types 1/0/0/0/0/0/0/0/0/0 Lore% 39 Gallery% 44 Achievement% 42 Wizard Run 0 Options --------- Layout 0 ASCII 0 Keyboard 0 Movement Numpad Keybinds 0 Fullscreen 1 Font 18/SmallcapsGlow Map View 76x50 Zoom Use 0% Tactical HUD 1 Map Filters NONE Filters NONE Steam 1 RUN: c08572bd-7c2d-4485-a5f3-a81ee9a67843